bitfinex/quotes_SOLUSD_20260305
["timestamp","ask_amount","ask_price","bid_price","bid_amount"]
[1772670385369,10.98078233,91.069,91.034,0.47929721]
[1772670385657,0.46861355,91.068,91.034,0.47929721]
[1772670386242,0.49234498,91.062,91.03,0.2]
[1772670387167,0.49234498,91.051,91.03,0.2]
[1772670387466,0.49234498,91.036,91.0,1e-08]
[1772670387645,4.65531888,91.03,90.998,1e-08]
[1772670387842,0.28432314,91.029,90.998,1e-08]
[1772670388043,0.28432314,91.009,90.99,1e-08]
[1772670388342,0.28432314,90.999,90.98,1e-08]
[1772670388866,0.28432314,90.999,90.929,0.48927152]
[1772670388867,0.28432314,90.989,90.929,0.48927152]
[1772670389160,0.28432314,91.01,90.934,0.48927152]
[1772670389340,9.23200241,91.01,90.934,0.48927152]
[1772670389860,0.28432314,91.006,90.934,0.48927152]
[1772670390061,0.28432314,90.992,90.934,0.48927152]
[1772670390237,0.49234498,90.987,90.934,0.48927152]
[1772670390438,0.28432314,90.994,90.934,0.48927152]
[1772670390756,0.28432314,90.986,90.934,0.48927152]
[1772670390957,0.49234498,90.98,90.934,0.48927152]
[1772670391142,0.49234498,90.971,90.934,0.48927152]
[1772670392146,0.49234498,90.971,90.936,0.48927152]
[1772670392453,10.99098005,90.984,90.936,0.48927152]
[1772670392751,0.28432314,90.994,90.936,0.48927152]
[1772670392958,0.49234498,90.992,90.936,0.48927152]
[1772670393152,0.49234498,90.99,90.938,0.48927152]
[1772670393645,0.49234498,90.982,90.938,0.48927152]
[1772670394044,10.99009792,90.991,90.938,0.48927152]
[1772670394950,0.49234498,90.982,90.938,0.48927152]
[1772670395280,54.94623421,90.999,90.938,0.48927152]
[1772670395281,0.49234498,90.971,90.938,0.48927152]
[1772670396468,0.49234498,90.961,90.93,0.2804533]
[1772670396668,0.49234498,90.961,90.931,0.48927152]
[1772670397250,0.49234498,90.959,90.931,0.48927152]
[1772670397671,0.49234498,90.951,90.93,0.2804533]
[1772670397966,0.28432314,90.946,90.93,1e-08]
[1772670398172,0.49234498,90.941,90.93,1e-08]
[1772670399367,0.49234498,90.939,90.93,1e-08]
[1772670399549,0.49234498,90.939,90.906,0.48927152]
[1772670399947,0.28432314,90.944,90.908,0.48927152]
[1772670400161,0.28432314,90.942,90.908,0.48927152]
[1772670400567,0.28432314,90.959,90.908,0.48927152]
[1772670400762,0.28432314,90.955,90.908,0.48927152]
[1772670400966,0.77666812,90.955,90.908,0.48927152]
[1772670401270,0.28432314,90.952,90.908,0.48927152]
[1772670402178,10.99398439,90.959,90.91,0.48927152]
[1772670402368,0.28432314,90.954,90.91,0.48927152]
[1772670402554,0.14216157,90.952,90.91,0.48927152]
[1772670402755,0.49234498,90.951,90.91,0.48927152]
[1772670404078,8.95221176,90.97,90.9,0.1]
[1772670404079,0.49234498,90.949,90.912,0.48927152]
[1772670404276,0.49234498,90.941,90.906,11.00026604]
[1772670404460,0.49234498,90.941,90.903,0.48927152]
[1772670404778,0.49234498,90.941,90.905,0.48927152]
[1772670404976,10.99505222,90.95,90.905,0.48927152]
[1772670405353,10.99411281,90.958,90.905,0.48927152]
[1772670405665,0.49234498,90.968,90.905,0.48927152]
[1772670406166,0.28432314,90.963,90.907,0.48927152]
[1772670406756,0.49234498,90.962,90.907,0.48927152]
[1772670408456,0.49234498,90.962,90.909,0.48927152]
[1772670410406,0.4677998,90.961,90.909,0.48927152]
[1772670410565,0.4677998,90.959,90.911,0.48853055]
[1772670410972,0.4677998,90.951,90.911,0.48853055]
[1772670412091,10.99384344,90.96,90.911,0.48853055]
[1772670412462,11.46164324,90.96,90.911,0.48853055]
[1772670412676,0.4677998,90.959,90.913,0.48853055]
[1772670414471,0.4677998,90.957,90.915,0.48853055]
[1772670415673,10.99432692,90.956,90.917,0.48853055]
[1772670416282,0.4677998,90.955,90.917,0.48853055]
[1772670417669,0.4677998,90.955,90.919,0.48853055]
[1772670418074,11.46236848,90.954,90.919,0.48853055]
[1772670418268,0.4677998,90.953,90.919,0.48853055]
[1772670419388,48.12962083,91.01,90.922,0.48853055]
[1772670419581,0.4677998,91.009,90.922,0.48853055]
[1772670419780,0.4677998,91.001,90.927,0.48853055]
[1772670419974,0.4677998,90.999,90.927,0.48853055]
[1772670420398,0.4677998,90.989,90.927,0.48853055]
[1772670420570,93.39735629,91.009,90.919,11.48729138]
[1772670420571,0.4677998,90.975,90.919,11.48729138]
[1772670420894,0.4677998,90.962,90.92,0.48853055]
[1772670421802,0.4677998,90.96,90.92,0.48853055]
[1772670422003,0.4677998,90.956,90.92,0.48853055]
[1772670422181,38.47802904,90.961,90.92,0.48853055]
[1772670422182,0.4677998,90.952,90.92,0.48853055]
[1772670422497,38.47802904,90.961,90.895,0.48853055]
[1772670422498,0.4677998,90.932,90.895,0.48853055]
[1772670423193,0.4677998,90.932,90.901,0.48853055]
[1772670423705,0.4677998,90.932,90.9,0.1]
[1772670423996,0.4677998,90.93,90.9,0.1]
[1772670425393,0.4677998,90.928,90.9,0.1]
[1772670426083,0.28432314,90.923,90.9,0.1]
[1772670426287,0.4677998,90.922,90.9,0.1]
[1772670427699,0.4677998,90.92,90.9,0.1]
[1772670429600,10.99880113,90.919,90.9,0.1]
[1772670430595,10.99880113,90.919,90.88,0.2]
[1772670430596,0.4677998,90.917,90.88,0.2]
[1772670430902,0.4677998,90.901,90.88,0.2]
[1772670432497,0.4677998,90.899,90.88,0.2]
[1772670433392,0.4677998,90.899,90.862,0.48853055]
[1772670434123,10.99894125,90.918,90.865,0.48853055]
[1772670434593,0.4677998,90.93,90.867,0.48853055]
[1772670435418,10.997817,90.928,90.867,0.48853055]
[1772670435616,0.4677998,90.927,90.867,0.48853055]
[1772670436708,0.4677998,90.925,90.869,0.48853055]
[1772670438809,0.48870586,90.906,90.867,0.48648612]
[1772670439121,0.48870586,90.89,90.859,0.48648612]
[1772670439610,93.48466849,90.924,90.85,0.48648612]
[1772670439611,0.48870586,90.88,90.85,0.48648612]
[1772670440006,0.48870586,90.88,90.843,11.00798824]
[1772670440318,0.48870586,90.87,90.858,1e-08]
[1772670440719,0.48870586,90.868,90.858,1e-08]
[1772670441416,0.28432314,90.859,90.823,0.48648612]
[1772670441716,0.48870586,90.85,90.812,0.48648612]
[1772670442906,11.0072758,90.849,90.813,11.0116393]
[1772670443108,0.48870586,90.848,90.814,0.48648612]
[1772670445902,0.48870586,90.88,90.816,0.48648612]
[1772670446106,0.48870586,90.87,90.816,0.48648612]
[1772670446316,0.46963681,90.86,90.816,0.48648612]
[1772670446618,0.28432314,90.847,90.816,0.48648612]
[1772670446821,0.46963681,90.841,90.816,0.48648612]
[1772670447021,0.46963681,90.85,90.816,0.48648612]
[1772670447206,3.69383402,90.888,90.816,0.48648612]
[1772670447207,0.14216157,90.862,90.816,0.48648612]
[1772670447407,0.46963681,90.861,90.816,0.48648612]
[1772670447807,0.46963681,90.869,90.818,0.49067686]
[1772670450011,0.46963681,90.88,90.823,0.49067686]
[1772670450304,0.46963681,90.888,90.823,0.49067686]
[1772670450521,0.14216157,90.881,90.823,0.49067686]
[1772670450705,0.61179838,90.88,90.823,0.49067686]
[1772670450907,0.46963681,90.879,90.823,0.49067686]
[1772670452609,0.46963681,90.877,90.828,0.49067686]
[1772670454025,11.00325431,90.883,90.828,0.49067686]
[1772670454721,0.46963681,90.883,90.833,0.49067686]
[1772670456208,0.46963681,90.881,90.833,0.49067686]
[1772670456426,0.46963681,90.879,90.833,0.49067686]
[1772670456624,0.46963681,90.879,90.835,0.49067686]
[1772670458414,0.46963681,90.877,90.835,0.49067686]
[1772670460328,0.46963681,90.875,90.837,0.49067686]
[1772670462635,0.28432314,90.88,90.828,0.49067686]
[1772670463317,0.28432314,90.896,90.832,0.49067686]
[1772670463517,0.28432314,90.889,90.832,0.49067686]
[1772670464235,66.0073268,90.899,90.832,0.49067686]
[1772670464236,0.28432314,90.896,90.832,0.49067686]
[1772670464632,0.46963681,90.889,90.837,0.49067686]
[1772670467229,0.46963681,90.905,90.842,0.49067686]
[1772670467430,0.14216157,90.9,90.842,0.49067686]
[1772670467620,0.46963681,90.899,90.842,0.49067686]
[1772670467818,38.5000385,90.909,90.842,0.49067686]
[1772670467819,0.46963681,90.897,90.842,0.49067686]
[1772670468025,38.5000385,90.909,90.842,0.49067686]
[1772670468026,0.46963681,90.889,90.842,0.49067686]
[1772670471825,0.46963681,90.889,90.847,0.48937396]
[1772670472025,0.48433873,90.906,90.847,0.48937396]
[1772670472438,0.48433873,90.915,90.849,0.48937396]
[1772670472634,0.48433873,90.922,90.855,0.48937396]
[1772670473036,0.48433873,90.92,90.855,0.48937396]
[1772670475149,0.48433873,90.918,90.86,0.48937396]
[1772670477839,0.48433873,90.918,90.856,93.55463589]
[1772670477840,0.48433873,90.916,90.865,0.48937396]
[1772670478230,0.48433873,90.937,90.865,0.48937396]
[1772670478440,0.14216157,90.934,90.865,0.48937396]
[1772670478647,0.48433873,90.929,90.865,0.48937396]
[1772670479853,0.48433873,90.929,90.876,0.48937396]
[1772670480832,0.48433873,90.929,90.881,0.48937396]
[1772670481032,85.07773714,90.96,90.881,0.48937396]
[1772670481033,0.48433873,90.941,90.881,0.48937396]
[1772670481233,0.48433873,90.95,90.885,0.48937396]
[1772670481437,10.99497466,90.951,90.885,0.48937396]
[1772670481643,0.48433873,90.95,90.885,0.48937396]
[1772670482953,0.48433873,90.964,90.895,0.48937396]
[1772670483142,0.48433873,90.964,90.905,0.48937396]
[1772670483949,0.48433873,90.964,90.896,0.28432314]
[1772670483950,0.48433873,90.964,90.909,0.48937396]
[1772670484144,0.48433873,90.986,90.925,0.48937396]
[1772670484454,0.48433873,90.98,90.925,0.48937396]
[1772670484841,0.48433873,91.008,90.931,0.28432314]
[1772670485049,0.48433873,91.007,90.936,0.48937396]
[1772670485556,0.48433873,91.007,90.937,0.28432314]
[1772670485758,0.48433873,91.007,90.946,0.48937396]
[1772670485954,0.48433873,91.007,90.955,0.28432314]
[1772670486156,0.48433873,91.007,90.956,0.48937396]
[1772670487261,0.48433873,91.007,90.926,225.45806479]
[1772670487262,0.48433873,91.019,90.961,0.48937396]
[1772670487638,0.48433873,91.018,90.961,0.48937396]
[1772670487861,0.2,91.02,90.96,3.69383402]
[1772670487862,0.2,91.02,90.965,0.48937396]
[1772670488057,0.2,91.02,90.975,0.48937396]
[1772670489262,0.2,91.02,90.979,3.69383402]
[1772670489263,1e-08,91.02,90.979,3.69383402]
[1772670489564,1e-08,91.02,90.98,0.48937396]
[1772670491358,0.48433874,91.02,90.985,0.48937396]
[1772670491870,0.53202988,91.04,90.986,0.48937396]
[1772670492043,0.53202988,91.04,90.996,0.48937396]
[1772670493545,0.53202988,91.04,91.001,0.48937396]
[1772670494048,1e-08,91.04,91.001,0.48937396]
[1772670494249,0.08310857,91.039,91.001,0.48937396]
[1772670494452,10.98421527,91.04,90.997,10.98937327]
[1772670494668,38.44467221,91.04,90.997,10.98937327]
[1772670494869,0.28432314,91.039,90.987,10.99058107]
[1772670495362,0.28432314,91.039,90.988,0.5]
[1772670495545,0.28432314,91.037,90.99,0.5]
[1772670496946,10.98442408,91.038,90.99,0.5]
[1772670498562,1e-08,91.04,90.992,0.5]
[1772670499866,1e-08,91.04,90.993,10.98985636]
[1772670500052,1e-08,91.04,90.994,0.5]
[1772670501049,1e-08,91.04,90.983,0.5]
[1772670501273,1e-08,91.04,90.983,11.49106426]
[1772670502169,0.28432314,91.039,90.972,0.5]
[1772670505875,0.28432314,91.037,90.974,0.5]
[1772670508074,80.89266952,91.036,90.974,0.5]
[1772670508279,0.28432314,91.035,90.976,0.5]
[1772670508462,0.28432314,91.029,90.97,10.9925351]
[1772670509192,81.17699266,91.029,90.97,10.9925351]
[1772670509361,81.17699266,91.029,90.967,0.5]
[1772670509564,81.17699266,91.029,90.968,10.99287661]
[1772670510666,0.14216157,91.019,90.963,10.99339145]
[1772670510867,0.28432314,91.019,90.963,10.99339145]
[1772670512371,0.28432314,91.019,90.963,11.49339145]
[1772670512573,0.28432314,91.017,90.963,11.49339145]
[1772670512774,0.28432314,91.017,90.948,0.5]
[1772670513763,0.28432314,91.015,90.948,0.5]
[1772670513986,0.28432314,91.015,90.946,27.48882483]
[1772670513987,0.28432314,91.015,90.95,0.5]
[1772670515787,93.68167943,91.009,90.95,0.5]
[1772670516176,0.28432314,90.999,90.95,0.5]
[1772670516876,0.28432314,90.999,90.925,3.69383402]
[1772670516877,0.28432314,91.007,90.952,0.5]
[1772670517074,80.89266952,91.008,90.952,0.5]
[1772670517281,0.28432314,91.007,90.952,0.5]
[1772670517873,0.28432314,91.005,90.954,0.5]
[1772670519871,0.28432314,91.003,90.956,0.5]
[1772670522192,0.28432314,91.001,90.958,0.5]
[1772670522879,10.98820458,91.007,90.958,0.5]
[1772670523182,0.28432314,91.006,90.958,0.5]
[1772670523564,10.98563079,91.028,90.958,0.5]
[1772670523771,10.98563079,91.028,90.961,0.5]
[1772670524087,80.89266952,91.029,90.968,0.5]
[1772670524294,1e-08,91.04,90.968,0.5]
[1772670524792,0.14216157,91.038,90.968,0.5]
[1772670525178,0.28432314,91.019,90.96,0.5]
[1772670525377,0.28432314,91.009,90.913,0.5]
[1772670525577,0.28432314,90.999,90.915,0.5]
[1772670525786,0.28432314,90.999,90.916,0.5]
[1772670526293,0.28432314,90.989,90.918,0.5]
[1772670526468,38.46238378,90.998,90.921,0.5]
[1772670526669,0.28432314,90.997,90.921,0.5]
[1772670526889,0.28432314,90.997,90.925,0.5]
[1772670527276,10.98925251,90.998,90.935,0.5]
[1772670528273,0.28432314,91.01,90.94,0.5]
[1772670528466,0.28432314,91.01,90.946,0.5]
[1772670528888,38.44928539,91.029,90.946,0.5]
[1772670529271,0.28432314,91.028,90.946,0.5]
[1772670531087,0.28432314,91.026,90.951,0.5]
[1772670532276,0.28432314,91.024,90.953,0.5]
[1772670533389,0.28432314,91.024,90.952,38.48183656]
[1772670533390,0.28432314,91.024,90.955,0.5]
[1772670533979,0.28432314,91.019,90.955,0.5]
[1772670534190,0.28432314,91.017,90.957,0.5]
[1772670535284,10.98683776,91.018,90.96,0.5]
[1772670536697,0.28432314,91.031,90.966,0.5]
[1772670537198,1e-08,91.04,90.966,0.5]
[1772670537698,0.28432314,91.039,90.966,0.5]
[1772670538688,0.28432314,91.037,90.971,0.5]
[1772670541189,10.9846654,91.036,90.973,0.5]
[1772670541399,38.44632891,91.036,90.973,0.5]
[1772670541904,93.36965594,91.036,90.973,0.5]
[1772670542195,38.44632891,91.036,90.973,0.5]
[1772670543978,0.28432314,91.035,90.975,0.5]
[1772670544303,0.28432314,91.029,90.975,0.5]
[1772670544891,0.28432314,91.019,90.968,0.5]
[1772670545194,0.28432314,91.019,90.964,10.99324493]
[1772670546202,0.28432314,91.017,90.964,10.99324493]
[1772670547798,0.28432314,91.015,90.964,10.99324493]
[1772670548498,0.28432314,91.015,90.961,0.5]
[1772670548708,0.28432314,91.009,90.961,0.5]
[1772670549499,0.28432314,91.009,90.962,10.99360172]
[1772670550001,0.28432314,91.007,90.963,0.5]
[1772670550397,0.28432314,91.007,90.955,0.5]
[1772670551304,0.28432314,91.007,90.956,0.5]
[1772670553105,38.45900269,91.006,90.95,0.5]
[1772670553288,119.35167221,91.006,90.95,0.5]
[1772670553695,0.28432314,91.005,90.95,0.5]
[1772670554010,38.45900269,91.006,90.95,0.5]
[1772670554609,0.28432314,91.005,90.952,0.5]
[1772670555486,80.89266952,91.028,90.955,0.5]
[1772670555901,0.28432314,91.027,90.955,0.5]
[1772670556104,80.89266952,91.028,90.962,0.28432314]
[1772670556394,80.89266952,91.028,90.965,0.5]
[1772670556698,10.98551011,91.029,90.965,0.5]
[1772670556898,0.28432314,91.039,90.97,0.5]
[1772670557292,27.46072745,91.04,90.97,0.5]
[1772670557494,0.14216157,91.039,90.97,0.5]
[1772670557701,0.28432314,91.039,90.97,0.5]
[1772670559804,0.28432314,91.037,90.975,0.5]
[1772670561290,0.28432314,91.035,90.977,0.5]
[1772670562202,0.14216157,91.035,90.977,0.5]
[1772670562895,0.28432314,91.035,90.977,0.5]
[1772670563501,0.28432314,91.033,90.979,0.5]
[1772670563701,10.98490673,91.034,90.979,0.5]
[1772670564194,0.14216157,91.033,90.979,0.5]
[1772670564412,0.28432314,91.033,90.979,0.5]
[1772670566014,4.17298567,91.02,90.973,11.49218947]
[1772670566201,0.28432314,91.019,90.934,0.5]
[1772670566520,0.28432314,91.009,90.937,0.5]
[1772670567121,0.28432314,91.019,90.937,0.5]
[1772670567296,0.28432314,91.019,90.936,3.69383402]
[1772670567297,0.28432314,91.019,90.945,0.5]
[1772670567710,4.17298567,91.03,90.945,0.5]
[1772670567916,38.44970777,91.028,90.946,93.4620544]
[1772670568107,0.28432314,91.027,90.95,0.5]
[1772670569931,4.17298567,91.02,90.951,38.48225967]
[1772670570219,0.28432314,91.009,90.955,0.5]
[1772670572016,0.28432314,91.007,90.957,0.5]
[1772670573396,0.28432314,91.005,90.959,0.5]
[1772670575902,38.45984791,91.004,90.961,0.5]
[1772670577325,0.28432314,91.003,90.961,0.5]
[1772670580132,0.28432314,91.001,90.963,0.5]
[1772670580504,0.28432314,90.999,90.934,0.5]
[1772670580815,4.17419988,91.0,90.934,0.5]
[1772670580816,0.28432314,90.997,90.938,0.5]
[1772670582207,0.28432314,90.995,90.94,0.5]
[1772670584611,4.17419988,91.01,90.921,87.98828486]
[1772670584612,0.28432314,91.025,90.945,0.5]
[1772670584805,38.45055258,91.026,90.945,0.5]
[1772670585005,0.28432314,91.019,90.945,0.5]
[1772670587129,0.28432314,91.017,90.947,0.5]
[1772670588328,0.28432314,91.015,90.949,0.5]
[1772670589101,4.17419988,91.01,90.949,0.5]
[1772670589301,0.28432314,91.015,90.949,0.5]
[1772670589530,0.28432314,91.009,90.949,0.5]
[1772670589733,0.28432314,90.999,90.949,0.5]
[1772670590732,137.33848991,91.016,90.951,0.5]
[1772670590733,0.28432314,90.997,90.951,0.5]
[1772670592716,38.46322914,90.996,90.953,0.5]
[1772670595022,0.28432314,90.995,90.953,0.5]
[1772670595431,0.28432314,91.008,90.955,0.5]
[1772670595915,0.28432314,90.999,90.955,0.5]
[1772670596735,0.28432314,91.008,90.955,0.5]
[1772670597730,0.28432314,91.006,90.957,0.5]
[1772670599833,0.28432314,91.004,90.959,0.5]
[1772670601325,0.28432314,91.004,90.925,3.69383402]
[1772670601326,4.17419988,91.0,90.95,0.5]
[1772670601540,0.28432314,90.999,90.95,0.5]
[1772670601722,0.28432314,90.989,90.95,0.5]
[1772670601919,0.28432314,90.987,90.939,0.5]
[1772670602334,4.17419988,90.98,90.939,0.5]
[1772670602641,0.28432314,90.987,90.939,0.5]
[1772670603218,0.28432314,90.979,90.932,0.5]
[1772670603837,4.17419988,90.96,90.909,0.5]
[1772670604137,4.17419988,90.95,90.888,0.5]
[1772670604345,4.17419988,90.93,90.888,0.5]
[1772670604651,4.17419988,90.95,90.888,0.5]
[1772670605018,38.4746452,90.969,90.888,0.5]
[1772670605343,10.99154749,90.979,90.894,0.5]
[1772670605515,10.99154749,90.979,90.906,0.5]
[1772670606943,0.28432314,90.979,90.908,0.5]
[1772670607441,0.28432314,90.979,90.907,38.50088551]
[1772670607442,0.28432314,90.988,90.911,0.5]
[1772670607932,38.46618821,90.989,90.911,0.5]
[1772670608324,0.14216157,90.988,90.911,0.5]
[1772670608647,0.28432314,90.969,90.911,0.5]
[1772670608826,0.28432314,90.957,90.911,0.5]
[1772670609028,0.28432314,90.957,90.886,3.69383402]
[1772670609029,0.28432314,90.957,90.913,0.5]
[1772670610024,0.28432314,90.957,90.912,27.49912002]
[1772670610224,0.28432314,90.929,90.872,0.5]
[1772670610647,0.28432314,90.959,90.875,0.5]
[1772670610940,0.28432314,90.949,90.875,0.5]
[1772670611618,0.28432314,90.959,90.875,0.5]
[1772670612236,0.28432314,90.957,90.877,0.5]
[1772670613016,0.28432314,90.949,90.877,0.5]
[1772670613741,0.28432314,90.957,90.877,0.5]
[1772670614038,0.28432314,90.957,90.88,0.5]
[1772670614935,0.28432314,90.955,90.885,0.5]
[1772670615837,0.28432314,90.939,90.885,0.5]
[1772670616425,0.28432314,90.955,90.885,0.5]
[1772670616827,38.4746452,90.969,90.886,38.50978147]
[1772670617042,38.4746452,90.969,90.887,0.5]
[1772670617246,0.28432314,90.968,90.887,0.5]
[1772670619039,0.28432314,90.966,90.889,0.5]
[1772670619240,0.28432314,90.966,90.888,93.52169703]
[1772670619241,0.28432314,90.966,90.892,0.5]
[1772670621352,0.28432314,90.964,90.894,0.5]
[1772670623657,0.28432314,90.962,90.896,0.5]
[1772670625653,0.28432314,90.96,90.898,0.5]
[1772670628041,0.28432314,90.967,90.9,0.5]
[1772670629942,10.99033949,90.989,90.904,0.5]
[1772670630146,38.46618821,90.989,90.904,0.5]
[1772670630353,0.28432314,90.988,90.904,0.5]
[1772670631155,0.28432314,90.988,90.906,0.5]
[1772670631461,0.14216157,90.988,90.906,0.5]
[1772670631660,0.28432314,90.988,90.906,0.5]
[1772670632757,0.28432314,90.986,90.911,0.5]
[1772670633658,0.28432314,90.986,90.915,0.5]
[1772670634956,0.28432314,90.986,90.92,0.5]
[1772670635164,27.47298659,90.999,90.92,0.5]
[1772670635165,0.28432314,90.984,90.92,0.5]
[1772670635854,10.98925251,90.998,90.925,0.14216157]
[1772670636060,10.98925251,90.998,90.926,0.5]
[1772670636841,54.93876334,91.011,90.931,0.5]
[1772670638462,0.14216157,91.01,90.931,0.5]
[1772670640753,4.45852302,91.01,90.933,0.5]
[1772670640956,4.45852302,91.01,90.905,44.00185826]
[1772670640957,4.17419988,90.97,90.909,11.000011]
[1772670641162,0.28432314,90.959,90.905,11.0004237]
[1772670641363,0.28432314,90.949,90.905,11.0004237]
[1772670641963,0.28432314,90.959,90.905,38.50166125]
[1772670642156,0.28432314,90.959,90.905,11.0004237]
[1772670642540,0.28432314,90.969,90.906,0.5]
[1772670642742,0.28432314,90.967,90.907,11.500253]
[1772670643044,0.28432314,90.967,90.907,39.00088551]
[1772670643461,0.28432314,90.967,90.908,0.5]
[1772670644361,10.99287661,90.968,90.908,0.5]
[1772670644953,0.28432314,90.977,90.91,0.5]
[1772670647569,0.28432314,90.969,90.911,38.49919151]
[1772670647962,0.28432314,90.969,90.912,0.5]
[1772670648573,0.28432314,90.975,90.912,0.5]
[1772670648973,0.28432314,90.973,90.914,0.5]
[1772670650876,0.28432314,90.971,90.916,0.5]
[1772670652473,0.28432314,90.969,90.907,11.000253]
[1772670652674,0.28432314,90.949,90.904,0.59811341]
[1772670652864,0.28432314,90.947,90.905,0.5]
[1772670653063,10.99529401,90.948,90.905,0.5]
[1772670653265,0.28432314,90.957,90.905,0.5]
[1772670653579,10.99408518,90.958,90.905,0.5]
[1772670655074,0.28432314,90.957,90.907,0.5]
[1772670655862,38.47549111,90.967,90.907,0.5]
[1772670655863,0.28432314,90.966,90.907,0.5]
[1772670658385,38.76108317,90.964,90.909,0.5]
[1772670659364,10.99336001,90.964,90.909,0.5]
[1772670659779,0.28432314,90.963,90.909,0.5]
[1772670660172,0.14216157,90.963,90.909,0.5]
[1772670660482,43.96144555,90.989,90.908,38.500462]
[1772670660483,0.28432314,90.979,90.911,0.5]
[1772670661282,0.28432314,90.985,90.911,0.5]
[1772670664686,38.46872492,90.983,90.912,38.49876803]
[1772670664869,38.75304806,90.983,90.913,0.5]
[1772670666370,93.70836938,90.983,90.913,0.5]
[1772670666564,0.28432314,90.979,90.913,0.5]
[1772670666896,0.28432314,90.977,90.915,0.5]
[1772670670396,0.28432314,90.975,90.917,0.5]
[1772670672378,10.9921516,90.974,90.919,0.5]
[1772670672709,0.28432314,90.973,90.919,0.5]
[1772670673008,0.14216157,90.973,90.919,0.5]
[1772670674287,0.28432314,90.973,90.919,0.5]
[1772670675189,0.28432314,90.971,90.921,0.5]
[1772670676303,10.99263493,90.97,90.923,0.5]
[1772670677511,38.47422226,90.97,90.923,0.5]
[1772670677710,0.28432314,90.969,90.905,0.5]
[1772670677879,0.28432314,90.959,90.905,0.5]
[1772670678297,0.28432314,90.957,90.907,11.000253]
[1772670678603,0.28432314,90.957,90.908,0.5]
[1772670678899,10.99408518,90.958,90.908,0.5]
[1772670680500,0.28432314,90.967,90.91,0.5]
[1772670681005,0.14216157,90.974,90.91,0.5]
[1772670681397,0.28432314,90.974,90.91,0.5]
[1772670682914,0.28432314,90.972,90.912,0.5]
[1772670685192,0.28432314,90.97,90.914,0.5]
[1772670688687,10.99275577,90.969,90.916,0.5]
[1772670688884,0.28432314,90.973,90.916,0.5]
[1772670688885,10.99229746,90.973,90.916,0.5]
[1772670689087,10.99229746,90.973,90.919,0.5]
[1772670689290,104.9,90.976,90.919,0.5]
[1772670689590,10.99166262,90.979,90.919,0.5]
[1772670690616,11.27393795,90.995,90.925,0.5]
[1772670690794,11.27393795,90.995,90.915,137.49106306]
[1772670690795,10.98961481,90.995,90.936,0.5]
[1772670693411,10.98816574,91.007,90.946,0.5]
[1772670694118,38.4585801,91.007,90.946,0.5]
[1772670694418,0.28432314,91.006,90.946,0.5]
[1772670694916,0.28432314,90.989,90.933,0.5]
[1772670695659,0.28432314,90.987,90.934,10.99698682]
[1772670696516,0.28432314,90.987,90.934,11.49698682]
[1772670698224,0.28432314,90.985,90.935,0.5]
[1772670700325,0.28432314,90.983,90.937,0.5]
[1772670701814,0.28432314,90.981,90.938,10.99650311]
[1772670702028,0.28432314,90.981,90.939,0.5]
[1772670703415,10.99142668,90.98,90.941,0.5]
[1772670704304,27.47449277,90.994,90.941,0.5]
[1772670704721,0.28432314,90.993,90.941,0.5]
[1772670704924,27.47449277,90.994,90.941,0.5]
[1772670705226,0.14216157,90.993,90.941,0.5]
[1772670705406,10.98430343,91.039,90.95,0.14216157]
[1772670705608,4.17433731,91.03,90.957,0.5]
[1772670705931,0.14216157,91.029,90.957,0.5]
[1772670706311,4.17433731,91.03,90.957,0.5]
[1772670706904,4.17433731,91.01,90.943,0.5]
[1772670707124,0.14216157,91.019,90.943,0.5]
[1772670707322,0.14216157,91.018,90.945,0.5]
[1772670709729,0.14216157,91.018,90.947,0.5]
[1772670710114,0.28432314,90.999,90.947,0.5]
[1772670710526,0.28432314,90.999,90.904,44.60040841]
[1772670710527,0.28432314,90.999,90.932,0.5]
[1772670710837,0.28432314,90.989,90.932,0.5]
[1772670711333,0.28432314,90.999,90.932,0.5]
[1772670711543,0.28432314,90.997,90.934,0.5]
[1772670713516,38.45604473,91.013,90.939,0.5]
[1772670713716,0.28432314,91.012,90.942,0.5]
[1772670713931,38.45604473,91.013,90.942,0.5]
[1772670714234,0.14216157,91.012,90.942,0.5]
[1772670714535,0.28432314,91.012,90.942,0.5]